bitfinex/quotes_ETHUSD_20251127
["timestamp","ask_amount","ask_price","bid_price","bid_amount"]
[1764247272788,0.51612054,3009.8,3009.7,0.479]
[1764247272990,0.72559411,3010.1,3009.7,0.9499]
[1764247273194,0.30514672,3010.0,3009.8,0.4709]
[1764247273389,3.53304769,3010.2,3009.8,0.4709]
[1764247273595,0.30515469,3010.1,3009.8,0.4709]
[1764247273790,0.30515469,3010.0,3009.8,0.4709]
[1764247274625,3.5330577,3010.2,3009.9,0.4565]
[1764247274830,3.5330577,3010.2,3009.8,0.4709]
[1764247274831,3.5330577,3010.2,3010.1,0.4565]
[1764247275028,3.83825737,3010.2,3009.8,0.4709]
[1764247275338,0.30519967,3010.1,3009.8,0.4709]
[1764247275696,0.30519967,3010.1,3010.0,0.4565]
[1764247275928,0.68902541,3010.1,3009.4,0.003]
[1764247276128,0.30519967,3010.0,3009.5,0.4571]
[1764247276332,3.62760786,3009.9,3009.5,0.4571]
[1764247276507,3.32240819,3009.9,3009.5,0.4571]
[1764247276709,3.32230163,3010.0,3009.8,0.4565]
[1764247277010,0.30520943,3009.9,3009.8,0.4565]
[1764247277332,6.8552142,3010.2,3009.8,0.4565]
[1764247277493,0.30527474,3010.1,3009.8,0.9136]
[1764247277899,0.30527474,3010.1,3010.0,0.4565]
[1764247278732,3.6274235,3010.1,3010.0,0.4565]
[1764247278918,3.6274235,3010.1,3009.8,0.001]
[1764247279111,3.32214876,3010.1,3009.8,0.001]
[1764247279624,7.32981902,3010.1,3009.8,0.001]
[1764247279825,0.6855215,3010.1,3009.8,0.001]
[1764247280033,4.00768274,3010.1,3009.8,0.001]
[1764247280324,7.32984398,3010.1,3009.8,0.001]
[1764247280634,0.30537508,3010.0,3009.8,0.001]
[1764247280842,4.3912665,3009.9,3009.8,0.001]
[1764247281809,0.30537508,3009.9,3009.8,0.9146]
[1764247282136,0.30537508,3009.9,3009.8,0.4575]
[1764247283421,3.62774459,3009.9,3009.8,0.4575]
[1764247284139,0.30537508,3009.9,3009.8,0.4575]
[1764247284304,3.62774459,3009.9,3009.8,0.4575]
[1764247284508,3.62774459,3009.9,3009.8,0.001]
[1764247284837,0.30457508,3009.9,3009.8,0.4575]
[1764247285049,0.30457508,3009.9,3009.8,0.9146]
[1764247285208,0.211,3010.2,3009.8,0.9146]
[1764247285408,0.211,3010.2,3010.1,0.4565]
[1764247285636,0.211,3010.2,3010.1,0.6523]
[1764247285818,0.211,3010.2,3010.1,1.1094]
[1764247288651,0.2697,3010.2,3009.8,0.001]
[1764247288814,3.95090891,3010.2,3009.8,0.001]
[1764247289009,3.95090891,3010.2,3009.8,0.4581]
[1764247290133,0.211,3010.5,3010.1,0.6523]
[1764247290318,0.4591,3011.0,3010.4,0.4565]
[1764247290319,0.70466985,3010.8,3010.4,0.4565]
[1764247290518,0.211,3010.9,3010.7,0.4565]
[1764247291237,0.211,3010.9,3010.8,0.4565]
[1764247291544,3.53226606,3010.9,3010.8,0.4565]
[1764247292212,0.211,3010.9,3010.8,0.4565]
[1764247292407,4.27654887,3010.9,3010.4,0.4571]
[1764247292638,4.27654887,3010.9,3010.5,0.4571]
[1764247292943,0.211,3010.9,3010.8,0.4565]
[1764247293448,0.211,3010.9,3010.8,0.9136]
[1764247293919,3.59096606,3010.9,3010.4,0.4571]
[1764247294124,3.59096606,3010.9,3010.8,0.4565]
[1764247294125,3.53226606,3010.9,3010.8,0.4565]
[1764247294441,4.21781096,3010.9,3010.8,0.4565]
[1764247295010,0.8965449,3010.9,3010.8,0.4565]
[1764247295219,3.53226606,3010.9,3010.8,0.4565]
[1764247296859,3.83809106,3010.9,3010.8,0.4565]
[1764247297455,3.84009106,3010.9,3010.8,0.4565]
[1764247297655,0.518825,3010.9,3010.8,0.4565]
[1764247298059,3.84009106,3010.9,3010.8,0.4565]
[1764247299347,3.90309106,3010.9,3010.5,0.4571]
[1764247299645,0.305825,3010.8,3010.5,0.4571]
[1764247299850,0.305825,3010.7,3010.5,0.4571]
[1764247300050,3.59726606,3010.9,3010.5,0.4571]
[1764247300238,0.30584924,3010.8,3010.5,0.4571]
[1764247300567,0.30584924,3010.7,3010.3,3.32187474]
[1764247300748,7.04543212,3010.9,3010.2,3.32199004]
[1764247300938,0.30584896,3010.8,3010.6,0.4641]
[1764247301169,0.30584896,3010.7,3010.6,0.4641]
[1764247302169,0.30584896,3010.7,3010.6,0.955]
[1764247302677,7.49442234,3010.7,3010.1,0.1958]
[1764247302838,2.78249289,3010.5,3010.1,0.1958]
[1764247303038,0.30584896,3010.4,3010.1,0.1958]
[1764247303261,2.78249289,3010.5,3010.1,0.6867]
[1764247303463,0.30601655,3010.4,3010.1,0.6867]
[1764247303651,3.32184584,3010.4,3010.1,0.6867]
[1764247303842,3.32175557,3010.5,3010.1,0.6867]
[1764247304156,0.30601616,3010.4,3010.1,0.6867]
[1764247304370,0.30601616,3010.3,3010.1,0.6867]
[1764247304552,7.76897471,3010.5,3010.1,0.6867]
[1764247304758,0.30603321,3010.4,3010.2,0.4641]
[1764247304955,0.30603321,3010.3,3010.2,0.4641]
[1764247306774,0.30603321,3010.3,3010.2,0.955]
[1764247307155,3.62796125,3010.3,3010.2,0.955]
[1764247307352,11.10649628,3010.3,3009.8,0.001]
[1764247307557,2.78249289,3010.1,3009.8,0.001]
[1764247307757,0.30603321,3010.0,3009.8,0.001]
[1764247307960,0.30603321,3009.9,3009.8,0.001]
[1764247308576,0.30603321,3009.9,3009.8,0.956]
[1764247308755,0.30523321,3009.9,3009.8,0.956]
[1764247308953,0.30523321,3009.9,3009.8,0.4651]
[1764247309157,3.62760272,3009.9,3009.8,0.001]
[1764247309655,0.30523321,3009.9,3009.8,0.001]
[1764247309974,0.21,3010.5,3009.8,4.27847989]
[1764247310144,4.23699814,3010.5,3010.4,0.4641]
[1764247311889,7.63650734,3010.5,3010.1,0.6818]
[1764247312183,6.9312184,3010.5,3010.1,0.1909]
[1764247312353,3.5317092,3010.5,3010.4,0.4641]
[1764247312554,5.2008505,3010.5,3010.4,0.4641]
[1764247313182,1.8791413,3010.5,3010.4,0.4641]
[1764247313479,4.2372655,3010.5,3010.4,0.4641]
[1764247315366,0.72559411,3010.7,3010.1,0.1909]
[1764247315367,6.64297396,3010.7,3010.1,0.1909]
[1764247315565,0.0767,3010.5,3010.1,0.6818]
[1764247315874,2.78249289,3010.6,3010.1,0.6818]
[1764247316063,2.78249289,3010.6,3010.4,0.4641]
[1764247316262,6.64297396,3010.7,3010.4,0.4641]
[1764247316459,0.70597571,3010.6,3010.4,0.4909]
[1764247316762,0.002,3010.5,3010.4,0.4909]
[1764247317182,0.002,3010.5,3010.4,0.955]
[1764247320182,0.002,3010.5,3010.1,3.51298835]
[1764247320384,0.002,3010.5,3010.2,0.4909]
[1764247320769,0.002,3010.5,3010.4,0.4641]
[1764247320973,0.30850379,3010.5,3010.4,0.4641]
[1764247321190,0.30851156,3010.5,3010.4,0.955]
[1764247325196,0.30851156,3010.5,3010.4,7.26931058]
[1764247325363,0.30851156,3010.5,3010.4,7.99624164]
[1764247325364,0.002,3010.5,3010.4,7.99624164]
[1764247325990,0.002,3010.5,3010.4,1.89193106]
[1764247326265,0.002,3010.5,3009.9,7.1232914]
[1764247326266,0.0795,3010.5,3009.9,3.801]
[1764247326494,0.30651509,3010.4,3010.0,0.4909]
[1764247326669,0.30651509,3010.3,3010.0,0.4909]
[1764247326873,3.32183952,3010.4,3010.0,0.4909]
[1764247326874,0.30651509,3010.2,3010.0,0.4909]
[1764247327102,3.32375851,3010.5,3010.0,0.4909]
[1764247327398,0.30652024,3010.4,3010.1,0.655]
[1764247327579,3.32375851,3010.5,3010.1,0.655]
[1764247327580,0.30652024,3010.3,3010.1,0.655]
[1764247327786,3.32375851,3010.5,3010.1,0.655]
[1764247327787,0.30652024,3010.2,3010.1,1.1459]
[1764247328185,0.30652024,3010.2,3010.1,0.4641]
[1764247328569,0.30652024,3010.2,3009.9,0.001]
[1764247328570,0.38402024,3010.2,3009.9,0.001]
[1764247328895,3.62867748,3010.1,3009.9,0.001]
[1764247329102,0.30652024,3010.0,3009.9,0.001]
[1764247329704,0.30652024,3010.0,3009.9,0.4651]
[1764247329999,0.85182024,3010.0,3009.9,0.001]
[1764247330189,4.43659173,3010.0,3009.9,0.001]
[1764247330898,0.30652024,3010.0,3009.9,0.4802]
[1764247331210,0.30652024,3010.0,3009.9,0.9432]
[1764247331504,3.32377372,3010.5,3009.9,0.9432]
[1764247331699,0.30651909,3010.4,3010.3,0.4792]
[1764247332471,0.30571909,3010.4,3010.3,0.4792]
[1764247333408,3.62753678,3010.4,3010.3,0.4792]
[1764247333989,0.30571909,3010.4,3010.3,0.4792]
[1764247334606,3.69314059,3010.4,3009.9,3.32333953]
[1764247334905,3.3874215,3010.4,3009.9,3.98802892]
[1764247335106,3.3874215,3010.4,3010.0,0.463]
[1764247336779,3.3874215,3010.4,3009.9,3.98804812]
[1764247337610,3.3874215,3010.4,3010.0,0.463]
[1764247337813,3.3874215,3010.4,3009.9,0.001]
[1764247338108,3.3874215,3010.4,3010.0,0.463]
[1764247338809,6.16991439,3010.4,3010.0,0.463]
[1764247339314,6.16991439,3010.4,3009.9,0.001]
[1764247339480,6.64941439,3010.4,3009.9,0.464]
[1764247339810,3.3874215,3010.4,3009.9,3.78631973]
[1764247340015,6.16991439,3010.4,3009.9,0.001]
[1764247340330,2.78249289,3010.2,3009.9,0.001]
[1764247340677,10.88019985,3010.4,3009.9,0.001]
[1764247340877,2.84809289,3010.0,3009.9,0.001]
[1764247341107,0.77241584,3010.0,3009.9,0.001]
[1764247341311,1.25191584,3010.0,3009.9,0.001]
[1764247341513,1.67635671,3010.0,3009.9,0.001]
[1764247341718,4.99861584,3010.0,3009.9,0.001]
[1764247342103,7.78110873,3010.0,3009.9,0.001]
[1764247342497,4.99861584,3010.0,3009.9,0.001]
[1764247344187,0.77241584,3010.0,3009.9,0.001]
[1764247344391,3.59785913,3010.0,3009.9,0.001]
[1764247344604,4.61106541,3010.0,3009.9,0.001]
[1764247345207,7.8730583,3010.0,3009.9,0.001]
[1764247348525,3.83864957,3010.0,3009.9,0.4802]
[1764247351596,3.83864957,3010.0,3009.9,0.001]
[1764247352287,3.90424957,3010.0,3009.9,0.001]
[1764247354114,4.90513887,3010.0,3009.5,0.066]
[1764247354419,0.30639044,3009.9,3009.4,3.32590992]
[1764247354584,0.30639044,3009.8,3009.4,3.35913913]
[1764247354787,0.30639044,3009.7,3009.4,3.32590992]
[1764247355008,3.53225913,3010.0,3009.4,3.32590992]
[1764247355216,0.30619608,3009.9,3009.6,0.4792]
[1764247355430,6.10464344,3010.1,3009.5,3.32279279]
[1764247355431,0.30619608,3009.8,3009.5,3.32279279]
[1764247355599,0.30619608,3009.7,3009.5,4.00867161]
[1764247355800,3.32226571,3010.0,3009.5,4.00867161]
[1764247356124,3.32226571,3010.0,3009.9,0.4792]
[1764247356307,4.33355631,3010.0,3009.9,0.4792]
[1764247356706,4.33434973,3010.0,3009.9,0.4792]
[1764247357916,1.0120906,3010.0,3009.9,0.4792]
[1764247358215,0.30632703,3010.0,3009.9,0.9422]
[1764247360515,0.70587971,3010.1,3009.9,0.9422]
[1764247360822,0.30636684,3010.0,3009.9,0.463]
[1764247361204,0.30636684,3010.0,3009.9,0.9253]
[1764247362394,3.62862597,3010.0,3009.9,0.9253]
[1764247362595,3.62862597,3010.0,3009.9,0.4623]
[1764247363316,0.30636684,3010.0,3009.9,0.4623]
[1764247364234,3.62862597,3010.0,3009.9,0.4623]
[1764247365531,4.08402597,3010.0,3009.7,0.4552]
[1764247365732,0.30636684,3009.9,3009.7,0.4552]
[1764247366031,0.30636684,3009.8,3009.7,0.4552]
[1764247366434,0.30636684,3009.8,3009.7,0.9175]
[1764247367130,0.30636684,3009.8,3009.7,0.4623]
[1764247367306,3.62884673,3009.8,3009.7,0.4623]
[1764247367505,0.30636684,3009.8,3009.7,0.9175]
[1764247368412,3.62884673,3009.8,3009.7,0.9175]
[1764247369134,3.62884673,3009.8,3009.7,0.4623]
[1764247369333,0.30636684,3009.8,3009.7,0.4623]
[1764247369706,0.30636684,3009.8,3009.7,0.9175]
[1764247370406,1.01365316,3009.8,3009.7,0.9175]
[1764247371333,0.30636684,3009.8,3009.7,4.66411893]
[1764247376014,0.002,3010.0,3009.7,8.01993512]
[1764247376234,0.002,3010.0,3009.9,0.4623]
[1764247376439,0.3088032,3010.0,3009.9,0.4623]
[1764247376736,0.3088032,3010.0,3009.9,0.9175]
[1764247377046,0.3088032,3010.0,3009.9,4.23986951]
[1764247378444,0.3088032,3010.0,3009.9,0.9175]
[1764247378745,0.3088032,3010.0,3009.9,0.4623]
[1764247380064,0.7634032,3010.0,3009.8,3.32247625]
[1764247380364,0.3068032,3009.9,3009.8,3.32247625]
[1764247380534,0.3067724,3009.9,3009.8,3.32247625]
[1764247380737,0.3067724,3009.9,3009.8,3.78477625]
[1764247381258,0.0012,3010.0,3009.8,3.78477625]
[1764247381644,0.0012,3010.0,3009.5,0.001]
[1764247381645,1.24903835,3009.9,3009.5,0.211]
[1764247381843,0.31143835,3009.8,3009.5,3.53380985]
[1764247382050,0.0047,3009.8,3009.5,3.53380985]
[1764247382218,0.0012,3010.0,3009.5,3.98900985]
[1764247382422,0.7937449,3009.9,3009.5,3.53380985]
[1764247382619,0.3067449,3009.8,3009.5,3.53380985]
[1764247382862,0.487,3009.9,3009.5,3.53380985]
[1764247383068,0.30674484,3009.8,3009.5,3.98900985]
[1764247383220,0.487,3009.9,3009.5,3.98900985]
[1764247383426,0.30675056,3009.8,3009.5,3.98900985]
[1764247383753,0.487,3009.9,3009.5,3.98900985]
[1764247383927,0.3067506,3009.8,3009.5,3.98900985]
[1764247384127,0.487,3009.9,3009.5,3.98900985]
[1764247384327,0.30675809,3009.8,3009.5,3.98900985]
[1764247384532,0.487,3009.9,3009.5,3.98900985]
[1764247384725,0.30675811,3009.8,3009.5,3.98900985]
[1764247385066,0.487,3009.9,3009.5,3.77900985]
[1764247385268,0.30676037,3009.8,3009.5,6.67984905]
[1764247385566,0.0012,3010.0,3009.6,0.4552]
[1764247385764,0.30676717,3009.9,3009.7,0.4623]
[1764247386073,0.30676717,3009.8,3009.7,0.4623]
[1764247386278,0.4882,3010.0,3009.7,0.4623]
[1764247386460,0.30677917,3009.9,3009.7,0.4623]
[1764247386649,0.4882,3010.0,3009.7,0.4623]
[1764247386832,0.30677915,3009.9,3009.7,0.4623]
[1764247387029,0.4882,3010.0,3009.7,0.4623]
[1764247387233,0.30677913,3009.9,3009.7,0.4623]
[1764247387490,0.30677913,3009.8,3009.5,3.53380985]
[1764247387772,3.8104914,3010.0,3009.5,3.93301084]
[1764247387773,0.487,3009.9,3009.5,3.93301084]
[1764247387947,0.30679176,3009.8,3009.5,4.38821084]
[1764247388269,0.487,3009.9,3009.5,4.38821084]
[1764247388437,0.30680762,3009.8,3009.5,7.71102193]
[1764247388635,0.0012,3010.0,3009.5,7.71102193]
[1764247388963,0.30680762,3009.9,3009.6,0.4552]
[1764247389133,0.30680762,3009.8,3009.6,0.4552]
[1764247389464,0.0012,3010.0,3009.6,0.4552]
[1764247389763,0.30681554,3009.9,3009.7,3.32252289]
[1764247389934,0.30681554,3009.8,3009.7,3.32252289]
[1764247390133,0.30681554,3009.8,3009.7,3.79792289]
[1764247390340,0.30681554,3009.8,3009.7,4.25272289]
[1764247390765,0.30681554,3009.8,3009.7,3.77732289]
[1764247391063,0.30681554,3009.8,3009.7,0.4548]
[1764247391261,0.30681554,3009.8,3009.7,3.77739029]
[1764247392860,0.30681554,3009.8,3009.7,4.25279029]
[1764247393250,0.30681554,3009.8,3009.6,0.001]
[1764247393251,1.24881554,3009.8,3009.6,0.001]
[1764247393457,0.31171554,3009.7,3009.6,0.001]
[1764247394650,0.80351554,3009.7,3009.6,0.001]
[1764247394978,4.53870178,3009.7,3009.6,0.001]
[1764247395678,4.53870178,3009.7,3009.1,3.509064]
[1764247395679,3.77122177,3009.6,3009.1,3.509064]
[1764247395980,0.31611554,3009.5,3009.1,7.519064]
[1764247396279,0.5011,3009.5,3009.1,7.994464]
[1764247397173,0.5011,3009.5,3009.1,4.194464]
[1764247398157,0.5011,3009.5,3009.1,3.984464]
[1764247398362,0.5011,3009.5,3009.1,4.194464]
[1764247398757,0.5011,3009.5,3009.1,4.19445971]
[1764247400059,0.4441,3009.2,3009.1,3.32322971]
[1764247400680,0.91544006,3009.5,3009.1,3.32322971]
[1764247400986,0.4918,3009.4,3009.1,3.32322971]
[1764247403086,3.73518637,3009.7,3009.1,3.79862971]
[1764247403087,0.41259595,3009.7,3009.1,3.79862971]
[1764247403387,0.3066008,3009.6,3009.1,3.45812971]
[1764247403556,0.3066008,3009.5,3009.1,3.45812971]
[1764247403750,0.491,3009.6,3009.1,3.45812971]
[1764247403954,0.3066001,3009.5,3009.1,3.32322971]
[1764247404255,0.491,3009.6,3009.1,7.1218825]
[1764247404455,0.30658579,3009.5,3009.1,7.2575825]
[1764247404656,0.491,3009.6,3009.1,6.7821825]
[1764247404881,0.30662843,3009.5,3009.2,0.4754]
[1764247405181,0.491,3009.6,3009.2,0.4754]
[1764247405391,0.30664236,3009.5,3009.2,0.4754]
[1764247405587,0.491,3009.6,3009.2,0.4754]
[1764247405784,0.30664234,3009.5,3009.2,0.4754]
[1764247405968,3.81421965,3009.9,3009.5,0.4548]
[1764247406297,1.2009848,3009.8,3009.5,0.4548]
[1764247406494,1.2009848,3009.8,3009.3,3.3229343]
[1764247406495,0.30664283,3009.7,3009.4,3.32291817]
[1764247406652,0.30664283,3009.6,3009.4,7.12123968]
[1764247406853,0.2112,3010.0,3009.6,0.4548]
[1764247406854,0.91773474,3010.0,3009.6,0.4548]
[1764247407188,0.30665168,3009.9,3009.6,0.4548]
[1764247407393,0.30665168,3009.8,3009.6,0.9302]
[1764247407559,0.30665168,3009.7,3009.6,0.4754]
[1764247407759,0.0012,3010.0,3009.6,0.73312397]
[1764247407961,0.0012,3010.0,3009.9,0.4548]
[1764247408169,0.30789268,3010.0,3009.9,0.4548]
[1764247409564,0.30789268,3010.0,3009.9,0.9302]
[1764247410267,0.30789268,3010.0,3009.9,4.25256951]
[1764247410669,0.30789268,3010.0,3009.9,5.03108369]
[1764247411800,0.30789268,3010.0,3009.9,1.70871418]
[1764247412107,0.30789268,3010.0,3009.9,0.4548]
[1764247412294,0.77089268,3010.0,3009.8,0.21]
[1764247412474,0.4642,3010.0,3009.8,0.21]
[1764247412805,0.80341114,3009.9,3009.7,0.21]
[1764247412970,0.80341114,3009.9,3009.5,0.21]
[1764247412971,0.75381114,3009.8,3009.5,0.21]
[1764247413167,0.9388,3009.8,3009.4,3.53285167]
[1764247413400,0.447,3009.8,3009.4,4.00825167]
[1764247414390,0.447,3009.8,3009.4,0.6854]
[1764247414586,0.447,3009.8,3009.4,4.00831785]
[1764247414793,0.9388,3009.8,3009.4,3.53291785]
[1764247415099,0.0092,3009.5,3009.1,0.1357]
[1764247415301,0.0092,3009.5,3009.2,0.21]
[1764247415508,0.4918,3009.4,3009.1,4.04884669]
[1764247415876,0.4518,3009.2,3009.0,4.26890428]
[1764247416375,0.4918,3009.4,3009.1,0.4548]
[1764247416576,0.4918,3009.4,3009.1,3.77800133]
[1764247416776,0.4918,3009.4,3009.1,0.4548]
[1764247417697,0.4918,3009.4,3009.1,3.77803624]
[1764247417907,0.4918,3009.4,3009.1,0.4548]
[1764247418120,0.4518,3009.2,3009.0,3.54330469]
[1764247418275,0.4518,3009.2,3009.0,3.33330469]
[1764247418472,0.4518,3009.2,3009.0,3.54330469]
[1764247421713,1.21819929,3009.1,3009.0,0.01]
[1764247423311,4.54145208,3009.1,3009.0,0.01]
[1764247424377,4.54145208,3009.1,3009.0,0.4816]
[1764247424378,0.30679929,3009.1,3009.0,0.4816]
[1764247424584,0.4524,3009.6,3009.0,0.9759]
[1764247424891,0.30656478,3009.5,3009.1,0.1357]
[1764247425085,0.30656478,3009.4,3009.1,0.1357]
[1764247425405,0.30656478,3009.3,3009.1,0.63]
[1764247425608,3.32285467,3009.5,3009.1,0.63]
[1764247425781,0.3065499,3009.4,3009.1,0.1357]
[1764247425985,0.3065499,3009.3,3009.1,0.1357]
[1764247426211,3.77525467,3009.5,3009.1,0.1357]
[1764247426378,0.30653545,3009.4,3009.0,3.33334065]
[1764247426580,0.30653545,3009.3,3009.0,3.33334065]
[1764247426780,3.77525467,3009.5,3009.0,3.33334065]
[1764247426979,0.30653426,3009.4,3009.0,3.33334065]
[1764247427208,3.77525467,3009.5,3009.0,3.33334065]
[1764247427209,0.30653426,3009.3,3009.0,3.33334065]
[1764247427379,0.4516,3009.4,3009.0,0.01]
[1764247427579,0.30652028,3009.3,3009.0,0.01]
[1764247427779,0.4516,3009.4,3009.0,0.01]
[1764247428012,0.3065203,3009.3,3009.0,0.01]
[1764247428176,0.4516,3009.4,3009.0,0.6922787]
[1764247428379,0.30650872,3009.3,3009.0,0.01]
[1764247428610,0.4516,3009.4,3009.0,0.01]
[1764247428814,0.30649917,3009.3,3009.0,0.01]
[1764247429015,0.4516,3009.4,3009.0,0.01]
[1764247429214,0.30649918,3009.3,3009.0,0.01]
[1764247429418,0.4516,3009.4,3009.0,0.01]
[1764247429617,0.30648729,3009.3,3009.0,0.01]
[1764247429816,0.4516,3009.4,3009.0,0.01]
[1764247430016,0.30648733,3009.3,3009.0,0.01]
[1764247430216,0.4516,3009.4,3009.0,0.01]
[1764247430427,0.30647624,3009.3,3009.0,0.01]
[1764247430588,0.4516,3009.4,3009.0,0.01]
[1764247430884,0.30647625,3009.3,3009.0,0.01]
[1764247431088,0.4516,3009.4,3009.0,0.01]
[1764247431287,0.30646061,3009.3,3009.0,0.01]
[1764247431510,3.77454657,3009.4,3009.0,0.01]
[1764247431708,0.75886601,3009.3,3009.0,0.01]
[1764247431907,0.4524,3009.3,3009.0,0.01]
[1764247432597,3.77528303,3009.5,3009.0,0.01]
[1764247432797,3.77528303,3009.5,3009.1,0.64]
[1764247432798,0.30645567,3009.4,3009.1,0.64]
[1764247433000,0.30645567,3009.3,3009.1,0.64]
[1764247433206,3.32282599,3009.5,3009.2,0.4943]
[1764247433414,0.3064404,3009.4,3009.2,0.4716]
[1764247433614,0.3064404,3009.3,3009.2,0.4716]
[1764247435788,0.7654404,3009.3,3009.0,0.01]
[1764247435988,0.459,3009.3,3009.0,0.01]
[1764247436190,0.459,3009.3,3009.0,0.79377294]
[1764247437934,0.0348,3009.1,3009.0,0.01]
[1764247438094,0.34113873,3009.1,3009.0,0.01]
[1764247440320,3.66439152,3009.1,3009.0,0.01]
[1764247441514,4.11679152,3009.1,3009.0,0.01]
[1764247441711,4.8607899,3009.1,3009.0,0.01]
[1764247441917,4.11679152,3009.1,3009.0,0.01]
[1764247443340,4.32679152,3009.1,3009.0,0.01]
[1764247447051,0.51633873,3009.1,3009.0,0.4816]
[1764247447461,3.83959152,3009.1,3009.0,0.4816]
[1764247448321,0.51633873,3009.1,3009.0,0.4816]
[1764247449587,0.30633873,3009.1,3009.0,0.4816]
[1764247451351,0.30553873,3009.1,3009.0,0.9598]
[1764247451853,0.30553873,3009.1,3009.0,1.38812213]
[1764247452619,0.30553873,3009.1,3009.0,4.23328537]
[1764247452945,0.30553873,3009.1,3009.0,4.71148537]
[1764247453749,0.30553873,3009.1,3009.0,1.38812213]
[1764247455954,0.30553873,3009.1,3009.0,0.90992213]
[1764247456332,0.30553873,3009.1,3009.0,0.4816]
[1764247458332,0.30553873,3009.1,3009.0,0.9598]
[1764247458531,0.30553873,3009.1,3009.0,0.4816]
[1764247459565,0.30553873,3009.1,3009.0,4.28316324]
[1764247459766,0.002,3009.4,3009.0,4.28316324]
[1764247459969,0.002,3009.4,3009.3,0.4959]
[1764247460379,0.002,3009.4,3009.3,0.9741]
[1764247460583,0.002,3009.4,3009.3,4.29713193]
[1764247460780,0.002,3009.4,3009.3,0.9741]
[1764247461070,0.002,3009.4,3009.3,4.29713193]
[1764247461638,0.002,3009.4,3009.3,8.22816265]
[1764247463278,0.30876268,3009.4,3009.3,8.22816265]
[1764247464765,0.002,3009.4,3009.3,8.22816265]
[1764247464963,0.002,3009.4,3009.3,8.43816265]
[1764247468242,0.002,3009.4,3009.3,5.65309727]
[1764247470860,0.002,3009.4,3009.3,9.45309727]
[1764247471063,0.002,3009.4,3009.3,9.85860127]
[1764247471848,0.002,3009.4,3009.3,10.58419538]
[1764247475068,0.0012,3009.4,3009.3,10.58419538]
[1764247475268,0.0012,3009.4,3009.3,12.68106076]
[1764247475575,0.0012,3009.4,3009.3,13.36926076]
[1764247478775,0.0012,3009.4,3009.3,10.37419538]
[1764247479076,0.0012,3009.4,3009.3,13.36926076]
[1764247479600,0.4555,3009.4,3009.3,8.99459138]
[1764247479790,0.0012,3009.4,3009.3,10.17869138]
[1764247480349,0.0012,3009.4,3009.3,9.49049138]
[1764247480549,0.0012,3009.4,3009.3,9.70049138]
[1764247482352,0.0012,3009.4,3009.3,10.16069138]
[1764247482875,0.0012,3009.4,3009.3,10.16169138]
[1764247492869,0.0012,3009.4,3009.3,10.56719538]
[1764247494568,0.0012,3009.4,3009.3,9.70149138]
[1764247494774,0.5011,3009.4,3009.3,9.20559138]
[1764247495203,0.0012,3009.4,3009.3,10.16599138]
[1764247495782,0.0012,3009.4,3009.3,9.95599138]
[1764247495969,0.0012,3009.4,3009.3,10.16599138]
[1764247496175,0.4475,3009.4,3009.3,9.49559138]
[1764247496502,0.4475,3009.4,3009.3,9.70559138]
[1764247496904,0.0012,3009.4,3009.3,9.49559138]
[1764247497071,0.4475,3009.4,3009.3,9.70559138]
[1764247497270,0.4475,3009.4,3009.3,1.64696534]
[1764247497502,1.25146891,3009.4,3009.3,0.501]
[1764247497702,0.4475,3009.4,3009.3,3.82403193]
[1764247498108,0.9443,3009.4,3009.3,3.82403193]
[1764247498508,0.9443,3009.4,3009.3,0.501]
[1764247498688,1.25067668,3009.4,3009.3,0.501]
[1764247501110,5.7389704,3009.4,3009.3,0.501]
[1764247501322,5.7389704,3009.4,3008.9,0.001]
[1764247501323,0.72559411,3009.3,3008.9,0.001]
[1764247501475,6.64694738,3008.9,3008.6,0.001]
[1764247501675,0.6833,3008.7,3008.1,0.003]
[1764247501985,0.0181,3008.5,3008.1,0.003]
[1764247502185,0.32527668,3008.5,3008.1,0.003]
[1764247502386,0.82257668,3008.5,3008.1,0.003]
[1764247505312,0.94838254,3008.5,3008.1,0.003]
[1764247505510,0.5154,3008.5,3008.1,0.003]
[1764247505712,0.72559411,3009.1,3008.1,0.003]
[1764247505713,1.34040042,3009.4,3008.4,0.4694]
[1764247505934,0.4973,3009.2,3008.4,3.33302606]
[1764247506118,0.4973,3009.2,3008.4,6.86705212]
[1764247506295,0.30528151,3009.1,3008.4,7.32725212]
[1764247506486,0.0004,3009.4,3008.4,6.65705212]
[1764247506841,0.30544917,3009.3,3008.5,0.21]
[1764247507117,0.30544917,3009.2,3008.5,0.21]
[1764247507303,7.14354522,3009.4,3008.5,0.21]
[1764247507304,0.4973,3009.3,3008.5,0.21]
[1764247507508,0.30544806,3009.2,3008.5,0.21]
[1764247507716,0.4973,3009.3,3008.4,6.86705212]
[1764247508021,0.46,3008.5,3008.4,0.009]
[1764247508507,0.4973,3008.9,3008.4,3.79339572]
[1764247509021,3.53304883,3009.3,3008.4,3.79339572]
[1764247509022,3.32331992,3009.1,3008.4,3.79339572]
[1764247509222,0.4973,3008.8,3008.4,3.79339572]
[1764247511126,0.4973,3008.8,3008.4,3.82663598]
[1764247511332,0.4973,3008.8,3008.4,7.15066204]
[1764247511522,0.4973,3008.8,3008.4,7.61012178]
[1764247511720,0.4973,3008.8,3008.4,4.28609572]
[1764247512342,0.4973,3008.8,3008.4,3.79339572]
[1764247513441,3.32329945,3009.1,3008.4,7.61012178]
[1764247513613,0.79462995,3009.0,3008.4,7.61012178]
[1764247514841,0.33232995,3009.0,3008.4,4.28609572]
[1764247515015,0.4623,3008.9,3008.4,4.31933598]
[1764247515211,0.4623,3008.9,3008.4,3.82663598]
[1764247515434,0.4623,3008.9,3008.4,7.64336204]
[1764247515642,0.4623,3008.9,3008.4,4.28609572]
[1764247516146,0.4791,3008.5,3008.4,0.009]
[1764247516639,0.9414,3008.5,3008.4,0.009]
[1764247518144,0.9414,3008.5,3008.4,0.01]
[1764247518929,4.26531557,3008.5,3008.4,0.01]
[1764247519102,5.04521684,3008.5,3008.4,0.01]